[Event "CCT Chessable Masters D-III 2024"]
[Site "Online"]
[Date "2024.02.04"]
[Round "55"]
[White "bardiya_Daneshvar"]
[Black "Antipov, Mikhail Al."]
[Result "1/2-1/2"]
[ECO "A36"]
[WhiteElo "2628"]
[BlackElo "2604"]
[Annotator "TA"]
[PlyCount "140"]
[EventDate "2024.01.12"]
[EventType "k.o."]
[EventCountry "NET"]
[SourceTitle "playchess.com"]
[Source "ChessBase"]
[SourceQuality "1"]
[TimeControl "600+2"]

{[%evp 67,140,0,0,0,0,0,58,57,174,154,155,170,158,160,254,248,241,230,279,247,262,274,347,354,326,347,343,372,345,8,291,272,176,177,177,177,177,177,178,178,178,53,397,395,368,8,8,-241,0,0,8,0,0,0,0,0,0,0,0,0,0,0,0,0,0,0,0,0,0,0,0,0,0,0,0]} 1. c4 {[%emt 0:00:03]} c5 {[%emt 0:00:09]} 2. g3 {[%emt 0:00:03]} g6 {[%emt 0:00:01]} 3. Bg2 {[%emt 0:00:00]} Bg7 {[%emt 0:00:01]} 4. Nc3 {[%emt 0:00:00]} Nc6 {[%emt 0:00:05]} 5. a3 {[%emt 0:00:01]} d6 {[%emt 0:00:14]} 6. Rb1 {[%emt 0:00:02]} a5 {[%emt 0:00:28]} 7. d3 {[%emt 0:00:18]} e6 {[%emt 0:00:14]} 8. Nf3 {[%emt 0:00:02]} Nge7 {[%emt 0:00:01]} 9. O-O {[%emt 0:00:02]} O-O {[%emt 0:00:14]} 10. Nb5 {[%emt 0:00:02]} Na7 {[%emt 0:00:10]} 11. Nxa7 {[%emt 0:00:20]} Rxa7 {[%emt 0:00:02]} 12. b4 {[%emt 0:00:01]} axb4 {[%emt 0:00:02]} 13. axb4 {[%emt 0:00:00]} b6 {[%emt 0:00:03]} 14. Bb2 {[%emt 0:00:06]} Bb7 {[%emt 0:00:48]} 15. Bxg7 {[%emt 0:00:06]} Kxg7 {[%emt 0:00:00]} 16. bxc5 {[%emt 0:00:09]} bxc5 {[%emt 0:00:01]} 17. Ra1 {[%emt 0:00:03]} Qa8 {[%emt 0:00:08]} 18. Qb3 {[%emt 0:00:39]} e5 {[%emt 0:01:04]} 19. Rxa7 {[%emt 0:00:03]} Qxa7 {[%emt 0:00:00]} 20. Rb1 {[%emt 0:00:02]} Bxf3 {[%emt 0:01:42]} 21. Bxf3 {[%emt 0:00:04]} Rd8 {[%emt 0:00:12]} 22. e3 {[%emt 0:00:15]} h5 {[%emt 0:00:06]} 23. Qb2 {[%emt 0:00:29]} Ng8 {[%emt 0:00:05]} 24. Ra1 {[%emt 0:00:04]} Qc7 {[%emt 0:00:14]} 25. Ra6 {[%emt 0:00:11]} Rb8 {[%emt 0:00:03]} 26. Qa2 {[%emt 0:00:07]} Nf6 {[%emt 0:00:19]} 27. h4 {[%emt 0:00:17]} Rb6 {[%emt 0:00:10]} 28. Ra8 {[%emt 0:00:41]} Rb4 {[%emt 0:00:14]} 29. Kg2 {[%emt 0:00:25]} Qb6 {[%emt 0:00:44]} 30. Ra6 {[%emt 0:00:11]} Qb8 {[%emt 0:00:02]} 31. Qa5 {[%emt 0:01:09]} Rb2 {[%emt 0:00:37]} 32. Ra8 {[%emt 0:00:11]} Qb6 {[%emt 0:00:01]} 33. Qxb6 {[%emt 0:00:19]} Rxb6 {[%emt 0:00:00]} 34. Rd8 {[%emt 0:00:01]} Ng8 {[%emt 0:00:02]} 35. Bd5 {[%emt 0:00:20]} Ne7 {[%emt 0:00:19]} 36. Kf3 {[%emt 0:00:04]} f5 {[%emt 0:00:29]} (36... Nxd5 $11 37. cxd5 f6) 37. e4 $14 {[%emt 0:00:25]} Rb3 {[%emt 0:00:38]} (37... Nxd5 $14 38. exd5 Kf7) 38. Rd7 $1 $18 {[%emt 0:00:20]} Kf8 {[%emt 0:00:05]} 39. Rxd6 {[%emt 0:00:14]} Rxd3+ {[%emt 0:00:10]} 40. Ke2 $1 {[%emt 0:00:00]} Rd4 {[%emt 0:00:10]} (40... Rc3 $16) 41. Rf6+ $18 {[%emt 0:00:03]} Ke8 {[%emt 0:00:00]} 42. Bf7+ {[%emt 0:00:30]} Kd8 {[%emt 0:00:31]} 43. exf5 {[%emt 0:00:04]} (43. Bxg6 Rxe4+ 44. Kf1 Nxg6 45. Rxg6 Ke7 $16) 43... gxf5 {[%emt 0:00:00]} 44. Rh6 {[%emt 0:00:15]} (44. Bxh5 Rxc4 45. Bf7 Rc2+ 46. Kf1 c4 $18) 44... Kd7 {[%emt 0:00:33]} 45. Be6+ {[%emt 0:00:24]} (45. Bxh5 Rxc4 46. Ra6 Re4+ 47. Kf1 Rb4 $14) (45. Rxh5 Rd6 46. Rh7 Rf6) 45... Kc7 {[%emt 0:00:09]} 46. Rxh5 {[%emt 0:00:06]} f4 {[%emt 0:00:05]} 47. g4 {[%emt 0:00:44]} (47. Rxe5 Kd6 48. gxf4 Rxf4 $11) 47... e4 {[%emt 0:00:01]} 48. Rh6 $2 {[%emt 0:00:18]} (48. Rxc5+ Kd6 49. Rf5 f3+ (49... Kxe6 50. Rxf4 Rxc4 51. f3 $11) 50. Ke3 Nxf5+ 51. Bxf5 Ke5 (51... Rxc4 52. Kf4 $14) 52. Bxe4 Rxe4+ 53. Kxf3 Rxc4 $19) (48. Bf7 $18) 48... Rd3 $2 {[%emt 0:00:06][%mdl 8192] [#]} (48... Nc6 $1 $11 49. g5 Rd3 50. Rh7+ Kd8) 49. Bf5 $1 $18 {[%emt 0:00:25]} f3+ {[%emt 0:00:04]} 50. Ke1 {[%emt 0:00:02]} Rd4 {[%emt 0:00:03] [#]} 51. Re6 $1 {[%emt 0:00:10]} Nxf5 {[%emt 0:00:02]} 52. gxf5 {[%emt 0:00:00]} Kd7 {[%emt 0:00:01]} 53. h5 {[%emt 0:00:07]} Rxc4 {[%emt 0:00:02]} 54. h6 {[%emt 0:00:01]} (54. Kd2 $18) 54... e3 $2 {[%emt 0:00:03][%mdl 8192]} (54... Rc1+ $14 55. Kd2 Rh1) 55. fxe3 $18 {[%emt 0:00:08]} ({Weaker is} 55. Rxe3 Rh4 $16) 55... Rc2 {[%emt 0:00:02]} 56. Kf1 $2 {[%emt 0:00:24]} (56. Re5 $18 {Strongly threatening f6.} Re2+ 57. Kf1) 56... Rh2 $11 {[%emt 0:00:02]} 57. Kg1 $2 {[%emt 0:00:02]} (57. h7 $11 c4 58. Re4) 57... Rg2+ $2 {[%emt 0:00:01]} ({Better is} 57... f2+ $19 58. Kf1 c4) 58. Kf1 {[%emt 0:00:03]} Rh2 {[%emt 0:00:03]} 59. Ra6 {[%emt 0:00:16]} (59. h7 {keeps more tension.} c4 60. Re4 c3 61. Rc4) 59... c4 {[%emt 0:00:00]} 60. Ra3 {[%emt 0:00:05]} Kd6 {[%emt 0:00:03]} 61. e4 {[%emt 0:00:01]} Ke5 {[%emt 0:00:01]} 62. Rxf3 {[%emt 0:00:01]} Rxh6 {[%emt 0:00:02]} 63. Ke2 {[%emt 0:00:03]} Kxe4 {[%emt 0:00:03]} 64. f6 {[%emt 0:00:01]} Rh8 {[%emt 0:00:01]} 65. f7 {[%emt 0:00:01]} Rf8 {[%emt 0:00:00]} 66. Rf1 {[%emt 0:00:01]} c3 {[%emt 0:00:03]} 67. Kd1 {[%emt 0:00:03]} Ke5 {[%emt 0:00:01]} 68. Kc2 {[%emt 0:00:01]} Ke6 {[%emt 0:00:00]} 69. Kxc3 {[%emt 0:00:00]} Rxf7 {[%emt 0:00:00]} 70. Rxf7 {[%emt 0:00:00]} Kxf7 {[%emt 0:00:00]} 1/2-1/2

[Event "CCT Chessable Masters D-III 2024"]
[Site "Online"]
[Date "2024.02.04"]
[Round "55"]
[White "Antipov, Mikhail Al."]
[Black "bardiya_Daneshvar"]
[Result "1/2-1/2"]
[ECO "B51"]
[WhiteElo "2604"]
[BlackElo "2627"]
[Annotator "ChessBase"]
[PlyCount "80"]
[EventDate "2024.01.12"]
[EventType "k.o."]
[EventCountry "NET"]
[SourceTitle "playchess.com"]
[Source "ChessBase"]
[SourceQuality "1"]
[TimeControl "600+2"]

1. e4 {[%emt 0:00:03]} c5 {[%emt 0:00:04]} 2. Nf3 {[%emt 0:00:01]} d6 {[%emt 0:00:00]} 3. Bb5+ {[%emt 0:00:02]} Nd7 {[%emt 0:00:00]} 4. O-O {[%emt 0:00:01]} a6 {[%emt 0:00:01]} 5. Bd3 {[%emt 0:00:01]} Ngf6 {[%emt 0:00:01]} 6. Re1 {[%emt 0:00:00]} e6 {[%emt 0:00:02]} 7. Bf1 {[%emt 0:00:01]} b6 {[%emt 0:00:05]} 8. d4 {[%emt 0:00:01]} cxd4 {[%emt 0:00:01]} 9. Nxd4 {[%emt 0:00:00]} Bb7 {[%emt 0:00:01]} 10. f3 {[%emt 0:00:01]} Rc8 {[%emt 0:00:27]} 11. c4 {[%emt 0:00:02]} g6 {[%emt 0:00:01]} 12. b3 {[%emt 0:00:13]} Bg7 {[%emt 0:00:03]} 13. Ba3 {[%emt 0:00:04]} Nc5 {[%emt 0:00:32]} 14. Nc3 {[%emt 0:00:06]} O-O {[%emt 0:00:02]} 15. Qd2 {[%emt 0:00:12]} Qc7 {[%emt 0:00:04]} 16. Rac1 {[%emt 0:00:05]} Qb8 {[%emt 0:00:19]} 17. Nd1 {[%emt 0:00:45]} Rfe8 {[%emt 0:00:55]} 18. Nf2 {[%emt 0:00:08]} Ba8 {[%emt 0:00:17]} 19. Bb2 {[%emt 0:00:36]} Rcd8 {[%emt 0:00:39]} 20. b4 {[%emt 0:00:20]} Ncd7 {[%emt 0:00:18]} 21. Ba1 {[%emt 0:00:18]} Rc8 {[%emt 0:00:15]} 22. Nb3 {[%emt 0:00:27]} Rcd8 {[%emt 0:01:01]} 23. Red1 {[%emt 0:01:42]} Bf8 {[%emt 0:00:37]} 24. Qd4 {[%emt 0:00:18]} h5 {[%emt 0:00:40]} 25. a3 {[%emt 0:00:12]} Bc6 {[%emt 0:00:10]} 26. Kh1 {[%emt 0:00:38]} Ba4 {[%emt 0:00:07]} 27. Rb1 {[%emt 0:00:03]} Rc8 {[%emt 0:00:30]} 28. Nh3 {[%emt 0:00:19]} b5 {[%emt 0:00:35]} 29. cxb5 {[%emt 0:00:23]} Bxb5 {[%emt 0:00:13]} 30. Na5 {[%emt 0:00:18]} Bxf1 {[%emt 0:00:11]} 31. Rxf1 {[%emt 0:00:00]} Qb5 {[%emt 0:00:03]} 32. Rfd1 {[%emt 0:00:08]} Rc2 {[%emt 0:00:10]} 33. Qe3 {[%emt 0:00:25]} Rec8 {[%emt 0:00:24]} 34. Nb3 {[%emt 0:00:22]} e5 {[%emt 0:00:02]} 35. Nd2 {[%emt 0:00:18]} Nb6 {[%emt 0:00:13]} 36. Nf1 {[%emt 0:00:15]} Ra2 {[%emt 0:00:21]} 37. Qb3 {[%emt 0:00:35]} Qc4 {[%emt 0:00:45]} 38. Qe3 {[%emt 0:00:02]} Qb5 {[%emt 0:00:35]} 39. Qb3 {[%emt 0:00:09]} Qc4 {[%emt 0:00:18]} 40. Qe3 {[%emt 0:00:01]} Qb5 {[%emt 0:00:09]} 1/2-1/2

[Event "CCT Chessable Masters D-III 2024"]
[Site "Online"]
[Date "2024.02.04"]
[Round "55"]
[White "Indjic, Aleksandar"]
[Black "Bortnyk, Oleksandr"]
[Result "1-0"]
[ECO "A45"]
[WhiteElo "2595"]
[BlackElo "2649"]
[Annotator "ChessBase"]
[PlyCount "63"]
[EventDate "2024.01.12"]
[EventType "k.o."]
[EventCountry "NET"]
[SourceTitle "playchess.com"]
[Source "ChessBase"]
[SourceQuality "1"]
[TimeControl "600+2"]

1. d4 {[%emt 0:00:02]} Nf6 {[%emt 0:00:32]} 2. Bg5 {[%emt 0:00:02]} b6 {[%emt 0:00:02]} 3. Nd2 {[%emt 0:00:05]} Bb7 {[%emt 0:00:05]} 4. c3 {[%emt 0:00:00]} d5 {[%emt 0:00:41]} 5. e3 {[%emt 0:00:03]} e6 {[%emt 0:00:13]} 6. Bd3 {[%emt 0:00:02]} Nbd7 {[%emt 0:00:05]} 7. f4 {[%emt 0:00:01]} h6 {[%emt 0:00:16]} 8. Bh4 {[%emt 0:00:02]} c5 {[%emt 0:00:26]} 9. Nh3 {[%emt 0:00:01]} Bd6 {[%emt 0:00:08]} 10. O-O {[%emt 0:00:02]} Qc7 {[%emt 0:00:09]} 11. a4 {[%emt 0:00:02]} g5 {[%emt 0:00:04]} 12. Bg3 {[%emt 0:00:02]} g4 {[%emt 0:00:30]} 13. Nf2 {[%emt 0:00:01]} h5 {[%emt 0:00:10]} 14. Bh4 {[%emt 0:00:01]} Bc6 {[%emt 0:00:41]} 15. g3 {[%emt 0:00:04]} Qb7 {[%emt 0:00:16]} 16. Qe2 {[%emt 0:00:03]} Ne4 {[%emt 0:00:09]} 17. Nfxe4 {[%emt 0:00:03]} dxe4 {[%emt 0:00:00]} 18. Ba6 {[%emt 0:00:01]} Qc7 {[%emt 0:00:05]} 19. f5 {[%emt 0:00:04]} e5 {[%emt 0:00:10]} 20. d5 {[%emt 0:00:11]} Bxd5 {[%emt 0:00:01]} 21. Nc4 {[%emt 0:00:01]} Be7 {[%emt 0:00:05]} 22. f6 {[%emt 0:00:12]} Bf8 {[%emt 0:00:22]} 23. Rad1 {[%emt 0:00:02]} Bc6 {[%emt 0:00:01]} 24. b3 {[%emt 0:00:09]} Rh6 {[%emt 0:00:13]} 25. Rf5 {[%emt 0:00:05]} Rb8 {[%emt 0:00:17]} 26. Rd2 {[%emt 0:00:23]} Ra8 {[%emt 0:00:08]} 27. Qd1 {[%emt 0:00:03]} Rb8 {[%emt 0:00:10]} 28. Bb5 {[%emt 0:00:06]} Rb7 {[%emt 0:00:58]} 29. Rxd7 {[%emt 0:00:16]} Qxd7 {[%emt 0:00:10]} 30. Bxc6 {[%emt 0:00:02]} Qxc6 {[%emt 0:00:02]} 31. Rxe5+ {[%emt 0:00:01]} Be7 {[%emt 0:00:01]} 32. Nd6+ {[%emt 0:00:01]} 1-0

[Event "CCT Chessable Masters D-III 2024"]
[Site "Online"]
[Date "2024.02.05"]
[Round "56"]
[White "Bortnyk, Oleksandr"]
[Black "Paravyan, David"]
[Result "1/2-1/2"]
[ECO "C84"]
[WhiteElo "2653"]
[BlackElo "2612"]
[Annotator "TA"]
[PlyCount "64"]
[EventDate "2024.01.12"]
[EventType "k.o."]
[EventCountry "NET"]
[SourceTitle "playchess.com"]
[Source "ChessBase"]
[SourceQuality "1"]
[TimeControl "600+2"]

{[%evp 19,64,0,0,-7,0,0,0,0,0,-8,0,0,106,80,157,134,170,183,480,80,74,93,289,297,475,458,728,295,302,289,327,316,321,292,446,438,449,16,18,0,470,0,19,0,565,0,12]} 1. e4 {[%emt 0:00:26]} e5 {[%emt 0:00:16]} 2. Nf3 {[%emt 0:00:05]} Nc6 {[%emt 0:00:00]} 3. Bb5 {[%emt 0:00:06]} a6 {[%emt 0:00:06]} 4. Ba4 {[%emt 0:00:03]} Nf6 {[%emt 0:00:03]} 5. Nc3 {[%emt 0:00:03]} Be7 {[%emt 0:00:13]} 6. O-O {[%emt 0:01:32]} b5 {[%emt 0:00:05]} 7. Bb3 {[%emt 0:00:02]} d6 {[%emt 0:00:01]} 8. Nd5 {[%emt 0:00:21]} O-O {[%emt 0:00:17]} 9. Nxe7+ {[%emt 0:01:54]} Qxe7 {[%emt 0:00:05]} 10. d3 {[%emt 0:00:02]} Na5 {[%emt 0:00:06]} 11. h3 {[%emt 0:00:08]} h6 {[%emt 0:00:04]} 12. Be3 {[%emt 0:00:05]} c5 {[%emt 0:00:13]} 13. Qd2 {[%emt 0:00:18]} Nxb3 {[%emt 0:00:03]} 14. axb3 {[%emt 0:00:00]} Bb7 {[%emt 0:00:03]} 15. Nh4 {[%emt 0:00:26] [#] And now Nf5 would win.} Qe6 {[%emt 0:01:03]} (15... Nxe4 $2 16. Nf5 Nxd2 17. Nxe7+ Kh7 18. Bxd2 $18) (15... Bc8 $11) 16. f4 $16 {[%emt 0:00:27]} exf4 {[%emt 0:00:17]} (16... Nd7 $142) 17. Bxf4 {[%emt 0:00:07]} (17. Rxf4 g5 $16) 17... d5 {[%emt 0:00:07] [#]} 18. Nf5 $1 {[%emt 0:02:02][%cal Of4h6] Bxh6! would now be deadly.} Nd7 $2 {[%emt 0:05:21]} (18... Nh7 19. Bd6 Rfe8) 19. Rae1 $2 {[%emt 0:00:24]} (19. Bxh6 $18 {and the rest is easy.} gxh6 20. exd5 Bxd5 21. Rae1 (21. Nxh6+ Kh7 $17)) 19... dxe4 {[%emt 0:00:06]} 20. dxe4 $40 {[%emt 0:00:04][%mdl 128] Strongly threatening Rf3. White attacks with force.} Rad8 $2 {[%emt 0:00:36]} (20... Kh7 $16 {keeps fighting.}) 21. Qc3 $18 {[%emt 0:00:10][%csl Gf5][%cal Rc3g7]} f6 {[%emt 0:00:25]} (21... Qf6 $142 22. Qg3 Kh8) 22. Bxh6 {[%emt 0:00:06]} ({Don't do} 22. Qg3 g5 23. Bd6 (23. Nxh6+ Kh7 $18) 23... Rfe8) 22... Qe5 {[%emt 0:00:53]} (22... g6 $142 23. Qg3 Ne5) 23. Bxg7 {[%emt 0:00:10]} (23. Qf3 $142) 23... Qxc3 {[%emt 0:00:14]} 24. bxc3 {[%emt 0:00:00]} Rfe8 {[%emt 0:00:01]} 25. Rf4 {[%emt 0:00:10]} Re6 {[%emt 0:00:08]} 26. Rg4 {[%emt 0:00:38]} Kf7 {[%emt 0:00:02]} (26... Ne5 {is a better defense.}) 27. Rd1 {[%emt 0:00:07] Hoping for Bh6.} Bc6 {[%emt 0:00:02]} 28. Nd6+ $2 {[%emt 0:00:05]} (28. Bh6 $18 {White wants to mate with Rg7+.} Rg8 29. Nd6+ Ke7 30. Rxg8 Rxd6 31. Re8+ Kxe8 32. Rxd6) 28... Ke7 $11 {[%emt 0:00:02]} 29. Nf5+ {[%emt 0:00:01][%mdl 8192]} (29. e5 $11 Nxe5 30. Nf5+ Ke8 31. Rxd8+ Kxd8 32. Rh4) 29... Kf7 $18 {[%emt 0:00:03]} 30. Nd6+ $2 {[%emt 0:00:00]} (30. Bh6 $18 {Rg7+ would kill now.} Rg8 31. Nd6+ Ke7 32. Rxg8 Rxd6 33. Bf8+ Nxf8 34. Rxd6 Kxd6 35. Rxf8) 30... Ke7 $11 {[%emt 0:00:02]} 31. Nf5+ {[%emt 0:00:01]} Ke8 $2 {[%emt 0:00:02][%mdl 8192]} (31... Kf7 $11 {and Black stays safe.} 32. Bh6 Rg8 33. Nd6+ Ke7 34. Rxg8 Rxd6) 32. Nd6+ $2 {[%emt 0:00:01]} ({White should try} 32. Bh6 $18 {White threatens Rg8+ and mate.} Nf8 33. Rxd8+ Kxd8 34. Bxf8) 32... Ke7 {[%emt 0:00:03] Weighted Error Value: White=1.21/Black=0.97.  Loses game:     	---       	Black=2      Missed win:     	White=4     	---        Mistake:       	White=2     	Black=6      OK:         	White=6     	Black=2      Best:        	White=1     	Black=6} 1/2-1/2

[Event "CCT Chessable Masters D-III 2024"]
[Site "Online"]
[Date "2024.02.05"]
[Round "56"]
[White "bardiya_Daneshvar"]
[Black "Safarli, Eltaj"]
[Result "1/2-1/2"]
[ECO "E32"]
[WhiteElo "2629"]
[BlackElo "2604"]
[Annotator "RC"]
[PlyCount "132"]
[EventDate "2024.01.12"]
[EventType "k.o."]
[EventCountry "NET"]
[SourceTitle "playchess.com"]
[Source "ChessBase"]
[SourceQuality "1"]
[TimeControl "600+2"]

1. d4 {[%emt 0:00:03]} Nf6 {[%emt 0:00:04]} 2. c4 {[%emt 0:00:01]} e6 {[%emt 0:00:01]} 3. Nc3 {[%emt 0:00:00]} Bb4 {[%emt 0:00:01]} 4. Qc2 {[%emt 0:00:00]} O-O {[%emt 0:00:10]} 5. e4 {[%emt 0:00:01]} d5 {[%emt 0:00:06]} 6. e5 {[%emt 0:00:02]} Ne4 {[%emt 0:00:00]} 7. Bd3 {[%emt 0:00:00]} c5 {[%emt 0:00:03]} 8. Nf3 {[%emt 0:00:01]} cxd4 {[%emt 0:00:11]} 9. Nxd4 {[%emt 0:00:00]} f5 {[%emt 0:00:04]} 10. exf6 {[%emt 0:01:24]} Nxf6 {[%emt 0:00:04]} 11. cxd5 {[%emt 0:01:03]} exd5 {[%emt 0:00:03]} 12. O-O {[%emt 0:00:06]} Nc6 {[%emt 0:00:05]} 13. Nxc6 {[%emt 0:00:23]} bxc6 {[%emt 0:00:00]} 14. Ne2 {[%emt 0:00:00]} Bd7 {[%emt 0:00:18]} 15. a3 {[%emt 0:00:05]} Bd6 {[%emt 0:00:06]} 16. Bf4 {[%emt 0:00:02]} Qc7 {[%emt 0:00:19]} 17. Bxd6 {[%emt 0:00:24]} Qxd6 {[%emt 0:00:00]} 18. Rac1 {[%emt 0:00:06]} Ng4 {[%emt 0:00:39]} 19. Ng3 {[%emt 0:00:15]} Qh6 {[%emt 0:00:14]} 20. h3 {[%emt 0:00:01]} Rxf2 {[%emt 0:00:50]} 21. Rxf2 {[%emt 0:01:16]} Nxf2 {[%emt 0:00:03]} 22. Kxf2 {[%emt 0:00:39]} Qf4+ {[%emt 0:00:04]} 23. Kg1 {[%emt 0:00:02]} Qxg3 {[%emt 0:00:01]} 24. Bxh7+ {[%emt 0:00:19]} Kh8 {[%emt 0:00:02]} 25. Rf1 {[%emt 0:00:01]} Bxh3 {[%emt 0:00:49]} 26. Bf5 {[%emt 0:00:10]} Rf8 {[%emt 0:00:43]} 27. Kh1 {[%emt 0:01:32]} Bxf5 {[%emt 0:02:09]} 28. Rxf5 {[%emt 0:00:03]} Qh4+ {[%emt 0:00:00]} 29. Kg1 {[%emt 0:00:03]} Re8 {[%emt 0:00:01]} 30. Qc5 {[%emt 0:01:26]} Re1+ {[%emt 0:01:46]} 31. Rf1 {[%emt 0:00:01]} Rxf1+ {[%emt 0:00:01]} 32. Kxf1 {[%emt 0:00:00]} Qf6+ {[%emt 0:00:01]} 33. Kg1 {[%emt 0:00:02]} Qxb2 {[%emt 0:00:00]} 34. Qxa7 {[%emt 0:00:04]} Qc1+ {[%emt 0:00:11]} 35. Kh2 {[%emt 0:00:14]} Qf4+ {[%emt 0:00:01]} 36. Kg1 {[%emt 0:00:04]} Kh7 {[%emt 0:00:08]} 37. Qd7 {[%emt 0:00:15]} Qe3+ {[%emt 0:00:45]} 38. Kh2 {[%emt 0:00:05]} Qe5+ {[%emt 0:00:03]} 39. Kg1 {[%emt 0:00:01]} c5 {[%emt 0:00:21]} 40. a4 {[%emt 0:00:00]} c4 {[%emt 0:00:01]} 41. Qh3+ {[%emt 0:01:05]} Kg6 {[%emt 0:00:02]} 42. Qg4+ {[%emt 0:00:00]} Kf6 {[%emt 0:00:01]} 43. Qf3+ {[%emt 0:00:01]} Ke7 {[%emt 0:00:03]} 44. Qa3+ {[%emt 0:00:03]} Kd7 {[%emt 0:00:00]} 45. a5 {[%emt 0:00:01]} Qd4+ {[%emt 0:00:33]} 46. Kh1 {[%emt 0:00:02]} Kc6 {[%emt 0:00:09]} 47. Qa4+ {[%emt 0:00:04]} Kc7 {[%emt 0:00:02]} 48. a6 {[%emt 0:00:02]} Qh4+ {[%emt 0:00:13]} 49. Kg1 {[%emt 0:00:01]} Qe1+ {[%emt 0:00:00]} 50. Kh2 {[%emt 0:00:01]} Qe5+ {[%emt 0:00:00]} 51. Kh1 {[%emt 0:00:02]} Qe1+ {[%emt 0:00:02]} 52. Kh2 {[%emt 0:00:01]} Qh4+ {[%emt 0:00:01]} 53. Kg1 {[%emt 0:00:01]} Qd4+ {[%emt 0:00:03]} 54. Kh1 {[%emt 0:00:02]} Qa7 {[%emt 0:00:01]} 55. Qb5 {[%emt 0:00:03]} Kd6 {[%emt 0:00:03]} 56. Kh2 {[%emt 0:00:04]} Qc7 {[%emt 0:00:05]} 57. Qa4 {[%emt 0:00:04]} c3 {[%emt 0:00:02]} 58. a7 {[%emt 0:00:01]} Ke6+ {[%emt 0:00:01]} 59. g3 {[%emt 0:00:02]} c2 {[%emt 0:00:02]} 60. a8=Q {[%emt 0:00:00]} c1=Q {[%emt 0:00:00]} 61. Q8e8+ {[%emt 0:00:01]} Kf6 {[%emt 0:00:01]} 62. Qh4+ {[%emt 0:00:02]} Qg5 {[%emt 0:00:08]} 63. Qf8+ {[%emt 0:00:02]} Kg6 {[%emt 0:00:00]} 64. Qe8+ {[%emt 0:00:01]} Kf6 {[%emt 0:00:01]} 65. Qf8+ {[%emt 0:00:06]} Kg6 {[%emt 0:00:00]} 66. Qe8+ {[%emt 0:00:00]} Kf6 {[%emt 0:00:01]} 1/2-1/2

[Event "CCT Chessable Masters D-III 2024"]
[Site "Online"]
[Date "2024.02.05"]
[Round "56"]
[White "Paravyan, David"]
[Black "Bortnyk, Oleksandr"]
[Result "0-1"]
[ECO "B04"]
[WhiteElo "2612"]
[BlackElo "2645"]
[Annotator "TA"]
[PlyCount "88"]
[EventDate "2024.01.12"]
[EventType "k.o."]
[EventCountry "NET"]
[SourceTitle "playchess.com"]
[Source "ChessBase"]
[SourceQuality "1"]
[TimeControl "600+2"]

{[%evp 9,88,54,44,8,17,13,33,41,32,28,29,29,53,46,43,58,50,37,73,65,114,75,109,126,112,112,104,104,157,147,156,172,142,66,209,41,54,46,57,43,46,8,8,8,13,-40,-45,-79,-86,-577,-595,-710,-706,-788,-763,-834,-837,-855,-847,-983,-897,-934,-897,-1023,-923,-989,-995,-1038,-1002,-1629,-1330,-1606,-1562,-1688,-1491,-1890,-1866,-1716,-1490,-2202,-2200]} 1. e4 {[%emt 0:00:03]} Nf6 {[%emt 0:00:45]} 2. e5 {[%emt 0:00:43]} Nd5 {[%emt 0:00:03]} 3. d4 {[%emt 0:00:01]} d6 {[%emt 0:00:01]} 4. Nf3 {[%emt 0:00:01]} dxe5 {[%emt 0:00:03]} 5. Nxe5 {[%emt 0:00:00]} c6 {[%emt 0:00:01]} 6. h4 {[%emt 0:00:02]} Nd7 {[%emt 0:01:12]} 7. Nf3 {[%emt 0:00:02]} N7f6 {[%emt 0:00:18]} 8. c4 {[%emt 0:00:01] White is slightly better.} Nb6 {[%emt 0:00:09]} 9. Nc3 {[%emt 0:00:04]} Bg4 {[%emt 0:00:09][%cal Oe7e5]} 10. Be3 {[%emt 0:00:01]} e6 {[%emt 0:00:06]} 11. Qb3 {[%emt 0:00:02]} Bxf3 {[%emt 0:01:14]} 12. gxf3 {[%emt 0:00:00]} Qc7 {[%emt 0:01:26]} 13. O-O-O {[%emt 0:00:14]} Nbd7 {[%emt 0:00:41]} 14. Kb1 {[%emt 0:00:07]} a5 {[%emt 0:00:07]} (14... O-O-O $14) 15. Bh3 {[%emt 0:00:15]} Bb4 {[%emt 0:00:14]} 16. d5 {[%emt 0:01:02]} exd5 {[%emt 0:00:59]} 17. cxd5 {[%emt 0:00:04]} O-O {[%emt 0:00:01]} 18. Rhg1 {[%emt 0:00:36]} Ne5 {[%emt 0:00:37]} (18... Kh8 $142) 19. Bg5 $16 {[%emt 0:01:43]} Nxd5 {[%emt 0:00:29]} 20. Nxd5 {[%emt 0:00:26]} cxd5 {[%emt 0:00:04]} 21. Qxd5 {[%emt 0:00:00]} (21. Rxd5 $16 {Black must now prevent h5.} Ra6 22. a3) 21... Qc5 {[%emt 0:00:45] [#]} (21... Kh8 $14) 22. Rg3 $2 {[%emt 0:02:29]} (22. Qxb7 Rab8 23. Qd5 Qxd5 24. Rxd5 Nxf3 $11) (22. a3 $1 $18 {[%cal Ra3b4]} Qxd5 23. Rxd5 Nxf3 24. Rg2) 22... Qxd5 $14 {[%emt 0:00:21]} 23. Rxd5 {[%emt 0:00:00][%cal Oa2a3] Hoping for a3!} Rfe8 $1 {[%emt 0:00:00]} 24. h5 {[%emt 0:00:23]} Nc4 {[%emt 0:00:15]} 25. Rg1 {[%emt 0:00:39]} Re2 $1 {[%emt 0:00:14][%csl LRb2,LRf2]} 26. Bf6 {[%emt 0:00:01] A strong pair of Bishops.} Bf8 {[%emt 0:00:32][%cal Oa8e8]} 27. Bc3 {[%emt 0:01:13]} ({White should play} 27. Bxg7 $11 Bxg7 28. h6 Rxf2 (28... Rxb2+ 29. Ka1 $11) (28... Nd2+ $2 29. Kc1 $18) 29. b3 Na3+ (29... Rxf3 30. Rxg7+ Kf8 31. bxc4 $16) 30. Kc1) 27... Rxf2 $15 {[%emt 0:00:03]} 28. a4 {[%emt 0:00:40]} Rxf3 {[%emt 0:00:04]} 29. Rb5 $2 {[%emt 0:00:00][%mdl 8192] [#]} Rxh3 $19 {[%emt 0:00:03] Black is clearly winning.} 30. Rxb7 {[%emt 0:00:05]} Rxh5 {[%emt 0:00:02]} 31. Rg4 {[%emt 0:00:02]} Nd6 {[%emt 0:00:01]} 32. Rb6 {[%emt 0:00:01]} Rd5 {[%emt 0:00:05]} 33. Ka2 {[%emt 0:00:01]} h5 {[%emt 0:00:01]} 34. Rf4 {[%emt 0:00:02]} g6 {[%emt 0:00:02]} 35. Rc6 {[%emt 0:00:02]} Rc8 {[%emt 0:00:01]} 36. Ra6 {[%emt 0:00:02]} Rf5 {[%emt 0:00:02]} 37. Rd4 {[%emt 0:00:02]} g5 {[%emt 0:00:02]} 38. Bxa5 {[%emt 0:00:03]} Rc4 {[%emt 0:00:01]} 39. Bc3 {[%emt 0:00:05]} Rxd4 {[%emt 0:00:02]} 40. Bxd4 {[%emt 0:00:00]} h4 {[%emt 0:00:01]} 41. Rc6 {[%emt 0:00:02]} h3 {[%emt 0:00:01]} 42. Rc3 {[%emt 0:00:01]} Rf4 {[%emt 0:00:03]} 43. Be5 {[%emt 0:00:03]} Rxa4+ {[%emt 0:00:01]} 44. Kb3 {[%emt 0:00:01]} Rh4 {[%emt 0:00:01] Never resign too early!   Weighted Error Value: White=0.61/Black=0.22 (precise) .  Loses game:     	White=1     	---        Missed win:     	White=1     	---        Mistake:       	White=2     	Black=3      Inaccurate:     	White=3     	Black=2      OK:         	White=8     	Black=9      Best:        	---       	Black=4      Strong:       	---       	Black=1} 0-1